bitfinex/quotes_ETHUSD_20241106
["timestamp","ask_amount","ask_price","bid_price","bid_amount"]
[1730913477884,0.12783646,2656.0,2655.7,0.07529796]
[1730913478089,0.12783646,2656.0,2655.3,1.94530121]
[1730913478090,0.12783646,2656.0,2655.8,0.7703]
[1730913478828,0.12783646,2656.0,2655.4,1.55590081]
[1730913479040,0.12783646,2656.0,2655.5,0.63838262]
[1730913479518,0.7918,2655.9,2655.4,0.78560081]
[1730913479828,0.7918,2655.9,2655.1,0.78560081]
[1730913479987,0.03970279,2655.8,2654.9,0.78560081]
[1730913480188,0.12783646,2656.0,2654.8,12.13]
[1730913480189,0.8052,2655.7,2654.8,12.13]
[1730913480513,0.03953401,2655.6,2654.8,12.13]
[1730913480714,0.8052,2655.5,2654.8,12.13]
[1730913481012,0.8052,2655.5,2654.9,0.07532228]
[1730913481819,0.8052,2655.5,2654.8,12.13]
[1730913482025,0.8052,2655.5,2654.9,1.29156008]
[1730913482461,0.8052,2655.5,2655.0,0.07531886]
[1730913483260,0.8052,2655.5,2654.9,1.29156008]
[1730913483448,0.8052,2655.5,2655.0,0.07531886]
[1730913483623,0.8052,2655.5,2654.9,1.29156008]
[1730913484136,0.8052,2655.5,2654.8,12.13]
[1730913484137,0.8052,2655.5,2655.0,1.41747487]
[1730913484927,0.8052,2655.5,2655.0,1.34215601]
[1730913485945,0.8052,2655.5,2654.9,0.07531885]
[1730913486151,0.8052,2655.5,2654.8,12.13]
[1730913486473,0.7752,2655.9,2655.2,3.64952418]
[1730913486768,0.7752,2655.9,2654.9,13.73670081]
[1730913486925,0.7752,2655.9,2655.0,1.85646262]
[1730913487421,0.03829026,2655.8,2654.9,12.9511]
[1730913487639,0.7752,2655.9,2654.9,12.9511]
[1730913487960,0.03805001,2655.8,2655.0,0.07531146]
[1730913488321,0.7752,2655.9,2655.0,0.07531146]
[1730913488522,0.7752,2655.9,2655.1,3.64952418]
[1730913488751,0.7752,2655.9,2655.3,0.7977]
[1730913488961,0.7752,2655.9,2655.4,0.07530327]
[1730913489263,0.7752,2655.9,2655.3,0.7977]
[1730913489471,0.12783646,2656.0,2655.3,0.7977]
[1730913490334,0.12783646,2656.0,2655.4,0.07530321]
[1730913490863,0.12783646,2656.0,2655.3,1.3209825]
[1730913492022,0.12783646,2656.0,2655.4,12.13]
[1730913492969,0.7915,2655.9,2655.4,12.13]
[1730913493357,0.03837285,2655.8,2655.4,12.13]
[1730913493681,0.7915,2655.9,2655.4,13.39532825]
[1730913493835,0.7915,2655.9,2655.4,12.13]
[1730913495467,0.0383652,2655.8,2655.4,12.13]
[1730913495666,0.7915,2655.9,2655.4,12.13]
[1730913495985,0.0383652,2655.8,2655.4,12.13]
[1730913496147,0.7617,2655.7,2655.4,12.13]
[1730913496349,0.7617,2655.7,2655.0,3.30885446]
[1730913496350,0.7617,2655.7,2655.0,0.78560081]
[1730913496548,0.55,2655.4,2654.7,0.78560081]
[1730913496756,0.7849,2655.3,2654.6,0.05650811]
[1730913497079,0.82277219,2655.3,2654.6,0.05650811]
[1730913497679,0.55,2655.2,2654.6,0.05650811]
[1730913497975,0.55,2655.2,2654.4,12.13]
[1730913497976,0.7541,2654.9,2654.4,12.13]
[1730913498273,0.03711865,2654.8,2654.4,12.13]
[1730913499353,0.8043,2654.7,2654.4,12.13]
[1730913499552,0.8043,2654.7,2654.0,0.78560081]
[1730913499759,0.8043,2654.7,2654.1,1.36690235]
[1730913499971,0.8043,2654.7,2654.1,1.29156008]
[1730913500167,0.8043,2654.7,2653.9,12.13]
[1730913500693,4.19952418,2655.2,2653.9,12.13]
[1730913500694,0.8325,2654.5,2653.9,12.13]
[1730913500994,0.8325,2654.5,2653.8,12.13]
[1730913501145,0.03664788,2654.4,2653.9,0.07535076]
[1730913501544,0.8325,2654.5,2653.9,0.07535076]
[1730913501956,0.8325,2654.5,2653.7,12.13]
[1730913502162,0.03660448,2654.4,2653.8,1.29156008]
[1730913502390,0.03660448,2654.4,2653.9,0.07535074]
[1730913502596,0.8325,2654.5,2653.9,0.07535074]
[1730913502890,0.8325,2654.5,2653.7,12.13]
[1730913502891,0.03657128,2654.4,2653.7,12.13]
[1730913503390,0.8325,2654.5,2653.7,12.13]
[1730913503751,0.03656106,2654.4,2653.8,1.36691109]
[1730913504068,0.8325,2654.5,2653.8,1.36691109]
[1730913504270,0.03656106,2654.4,2653.9,0.7536]
[1730913504498,0.8069,2654.7,2654.0,0.07533972]
[1730913504706,0.8069,2654.7,2653.8,5.07716089]
[1730913504856,0.8069,2654.7,2653.8,1.29156008]
[1730913505201,3.64952418,2655.2,2653.8,1.29156008]
[1730913505202,0.78725178,2654.6,2653.8,1.29156008]
[1730913505358,0.78725178,2654.6,2653.7,12.13]
[1730913505565,0.7505,2654.6,2653.7,12.13]
[1730913505809,0.03667558,2654.5,2653.8,0.07535299]
[1730913506292,0.7505,2654.4,2653.7,12.13]
[1730913506665,0.03646952,2654.3,2653.7,12.13]
[1730913506865,0.7505,2654.2,2653.3,12.13]
[1730913507179,0.7505,2654.0,2653.3,12.13]
[1730913507595,0.03604199,2653.9,2653.3,12.13]
[1730913507795,0.03604199,2653.9,2653.4,12.13]
[1730913508013,0.7531,2653.8,2653.4,12.13]
[1730913508171,0.7531,2653.8,2653.0,12.13]
[1730913508370,0.7531,2653.8,2653.1,1.73376181]
[1730913508570,0.7531,2653.8,2653.2,12.13]
[1730913508771,3.92598148,2654.4,2653.2,12.13]
[1730913508772,0.03584861,2653.7,2653.2,12.13]
[1730913508985,0.7891,2653.6,2652.9,12.13]
[1730913509179,0.7891,2653.6,2652.8,12.18651389]
[1730913509407,0.757,2653.4,2652.8,0.05651389]
[1730913509797,0.03747442,2653.3,2652.8,0.05651389]
[1730913509995,0.757,2653.4,2652.8,0.05651389]
[1730913510416,0.757,2653.4,2652.0,1.95797542]
[1730913510417,1.3796,2653.2,2652.9,12.13]
[1730913510720,0.86419398,2653.1,2652.9,12.13]
[1730913511027,1.3796,2653.0,2652.9,12.13]
[1730913511169,1.89697182,2653.0,2652.9,12.13]
[1730913511371,9.96928587,2653.0,2652.9,12.13]
[1730913511608,0.55,2652.7,2651.5,4.1302]
[1730913511833,0.821,2652.6,2651.6,4.1302]
[1730913512110,0.88276476,2652.6,2651.6,4.20561563]
[1730913512470,0.88276476,2652.6,2651.7,0.42056156]
[1730913512471,0.821,2652.6,2651.7,0.42056156]
[1730913513313,0.821,2652.6,2651.8,0.86030197]
[1730913513911,0.7577,2653.5,2652.0,4.25757238]
[1730913514209,0.7577,2653.5,2652.1,4.20559118]
[1730913515301,0.7577,2653.5,2652.2,4.1302]
[1730913515608,0.7577,2653.5,2652.3,0.49594852]
[1730913516198,0.7577,2653.5,2652.4,0.7752]
[1730913519102,0.7577,2653.5,2652.3,4.55075912]
[1730913520633,0.7577,2653.5,2652.3,0.42055912]
[1730913521343,0.7577,2653.5,2652.3,4.55075912]
[1730913521544,0.7577,2653.5,2652.3,4.1302]
[1730913522416,3.92052372,2653.7,2652.1,4.1302]
[1730913522417,0.55,2653.4,2652.1,4.1302]
[1730913522616,0.7911,2653.1,2652.1,4.1302]
[1730913522970,0.7911,2653.1,2651.7,0.42056156]
[1730913523133,0.7911,2653.1,2651.8,0.45507616]
[1730913523331,0.7911,2653.1,2651.8,0.53048165]
[1730913523743,0.7911,2653.1,2651.8,0.45507616]
[1730913523932,0.55,2653.2,2651.6,4.1302]
[1730913523933,0.7911,2652.9,2651.6,4.1302]
[1730913524136,0.7911,2652.9,2651.7,0.07540624]
[1730913525617,0.55,2653.0,2651.6,4.1302]
[1730913525618,1.3681,2652.8,2651.6,4.1302]
[1730913525814,0.55,2652.5,2651.6,4.1302]
[1730913526018,0.8181,2652.4,2651.6,4.1302]
[1730913527233,0.8023,2652.2,2651.6,4.1302]
[1730913527443,5.05987238,2652.2,2651.3,0.05656461]
[1730913527611,1.48802624,2652.1,2651.3,0.05656461]
[1730913527810,0.8023,2652.0,2651.3,0.05656461]
[1730913529662,0.8023,2652.0,2650.9,0.86103065]
[1730913529949,0.8023,2652.0,2650.9,4.99122359]
[1730913530112,0.8023,2652.0,2651.0,1.55750081]
[1730913530320,0.8023,2652.0,2651.1,0.65173428]
[1730913530616,0.8023,2652.0,2651.3,5.04317319]
[1730913530838,0.7885,2653.0,2651.5,0.7719]
[1730913531022,0.7885,2653.0,2651.6,4.33297949]
[1730913532261,0.7885,2653.0,2651.6,4.25757238]
[1730913532463,0.7935,2652.8,2651.7,0.58150732]
[1730913532818,0.7935,2652.8,2651.7,4.71170732]
[1730913533809,0.7935,2652.8,2652.0,0.818]
[1730913533951,0.7935,2652.8,2652.1,0.07539142]
[1730913534154,0.7935,2652.8,2652.1,4.91580081]
[1730913534461,0.7935,2652.8,2652.2,0.57338008]
[1730913535517,0.7935,2652.8,2652.3,0.07539142]
[1730913536756,0.7935,2652.8,2652.2,1.35088824]
[1730913537925,0.7935,2652.8,2652.3,0.07539143]
[1730913538354,0.7935,2652.8,2652.2,1.35088824]
[1730913538543,0.7935,2652.8,2652.3,1.44224321]
[1730913538844,0.7935,2652.8,2652.4,0.0753914]
[1730913539330,0.7935,2652.8,2652.3,1.44224321]
[1730913539933,0.7935,2652.8,2652.4,0.85289959]
[1730913540267,0.7935,2652.8,2652.3,1.44224321]
[1730913540468,0.7935,2652.8,2652.4,0.31818855]
[1730913540683,0.7935,2652.8,2652.4,1.09569671]
[1730913541042,0.7935,2652.8,2652.3,0.77750816]
[1730913541288,0.7935,2652.8,2652.3,0.85290656]
[1730913541734,0.7935,2652.8,2652.3,0.77750816]
[1730913542133,0.7935,2652.8,2652.4,0.07539834]
[1730913543136,0.7935,2652.8,2652.4,0.77750816]
[1730913543473,0.7935,2652.8,2652.3,0.77750816]
[1730913544584,0.7935,2652.8,2652.1,0.77750816]
[1730913544738,0.7935,2652.8,2652.0,0.77750816]
[1730913544944,0.7935,2652.8,2651.9,0.77750816]
[1730913545287,0.7935,2652.8,2651.8,0.77750816]
[1730913545446,0.7935,2652.8,2651.9,0.77750816]
[1730913545836,0.7598,2652.6,2651.9,0.77750816]
[1730913546175,4.20698611,2652.7,2651.8,0.77750816]
[1730913546176,0.7598,2652.4,2651.8,0.77750816]
[1730913547981,0.7908,2652.2,2651.5,0.77750816]
[1730913548144,0.7908,2652.2,2651.4,0.77750816]
[1730913548333,0.7908,2652.8,2651.5,5.27872317]
[1730913548533,0.7908,2652.8,2651.8,0.77750816]
[1730913548820,0.7908,2652.8,2652.0,0.77750816]
[1730913549680,0.7908,2652.8,2652.1,0.77750816]
[1730913551269,0.7908,2652.8,2652.2,0.77750816]
[1730913553595,0.7908,2652.8,2652.1,0.77750816]
[1730913553811,0.7908,2652.8,2652.0,1.16626224]
[1730913553812,0.55,2652.7,2652.0,0.77750816]
[1730913553998,0.7579,2652.6,2651.8,4.90770816]
[1730913554216,0.7579,2652.6,2651.8,0.77750816]
[1730913554713,0.7579,2652.6,2651.7,0.85292341]
[1730913555070,0.7579,2652.6,2651.8,0.77750816]
[1730913555419,0.7599,2652.4,2651.7,0.77750816]
[1730913555575,4.20698611,2652.5,2651.6,0.77750816]
[1730913555576,0.7599,2652.2,2651.6,0.77750816]
[1730913556015,0.7599,2652.2,2651.5,0.77750816]
[1730913556511,0.7599,2652.2,2651.4,0.77750816]
[1730913556821,0.828,2652.0,2651.4,0.77750816]
[1730913559217,0.828,2652.0,2651.5,0.77750816]
[1730913559514,0.828,2652.0,2651.4,0.77750816]
[1730913561827,0.828,2652.0,2651.5,0.07541686]
[1730913562387,0.828,2652.0,2651.4,0.9718852]
[1730913563111,0.828,2652.0,2651.5,0.07541685]
[1730913563431,0.828,2652.0,2651.4,0.9718852]
[1730913564216,0.828,2652.0,2651.5,0.07541683]
[1730913564418,0.828,2652.0,2651.5,0.37511326]
[1730913564927,0.828,2652.0,2651.5,0.29969643]
[1730913565788,0.828,2652.0,2651.3,1.56090816]
[1730913565789,0.828,2652.0,2651.3,0.77750816]
[1730913565995,0.828,2652.0,2651.2,0.77750816]
[1730913566197,0.828,2652.0,2651.1,4.90770816]
[1730913566936,0.828,2652.0,2651.2,0.07542616]
[1730913567107,0.828,2652.0,2651.2,0.85293432]
[1730913567634,0.828,2652.0,2651.2,0.69036582]
[1730913567835,0.828,2652.0,2651.2,0.07542616]
[1730913568038,0.828,2652.0,2651.2,0.85293432]
[1730913568204,0.828,2652.0,2651.2,0.07542616]
[1730913568540,0.828,2652.0,2651.2,0.85293432]
[1730913569342,0.828,2652.0,2651.2,0.07542616]
[1730913569841,0.828,2652.0,2651.1,4.90770816]
[1730913570041,0.828,2652.0,2651.2,0.85293426]
[1730913570204,0.828,2652.0,2651.2,1.46787391]
[1730913571613,0.828,2652.0,2651.2,0.69036575]
[1730913572205,0.828,2652.0,2651.2,1.46787391]
[1730913572846,0.828,2652.0,2651.3,0.77750816]
[1730913573556,0.828,2652.0,2651.4,0.07541974]
[1730913573705,0.828,2652.0,2651.4,0.42062272]
[1730913575373,0.7878,2652.7,2651.7,0.7903]
[1730913575678,0.7878,2652.7,2651.8,0.07540407]
[1730913576166,0.7878,2652.7,2651.8,0.85291223]
[1730913576373,0.7878,2652.7,2651.9,1.05845561]
[1730913576829,0.7878,2652.7,2651.9,0.35635494]
[1730913577033,0.7878,2652.7,2651.9,0.07540749]
[1730913578240,0.7878,2652.7,2651.9,0.85291565]
[1730913578630,0.7878,2652.7,2651.8,4.90770816]
[1730913578826,0.7878,2652.7,2651.9,0.07540748]
[1730913579065,0.7878,2652.7,2651.9,0.76937527]
[1730913579404,0.7878,2652.7,2651.9,1.54688343]
[1730913579703,0.7878,2652.7,2651.9,0.76937527]
[1730913580278,0.7878,2652.7,2651.9,1.54688343]
[1730913580761,0.7878,2652.7,2651.9,1.47147595]
[1730913580958,0.7878,2652.7,2652.0,0.67679382]
[1730913581380,0.7878,2652.7,2652.1,0.07540009]
[1730913583505,0.7878,2652.7,2652.0,1.45430198]
[1730913583680,0.7878,2652.7,2652.1,0.77750816]
[1730913584299,0.7878,2652.7,2652.2,0.07539339]
[1730913584508,0.7878,2652.7,2652.2,4.39979576]
[1730913584661,0.7878,2652.7,2652.2,4.1302]
[1730913589892,0.7878,2652.7,2651.8,0.77750816]
[1730913590499,0.7878,2652.7,2651.6,1.16626224]
[1730913590500,0.7878,2652.7,2651.7,0.77750816]
[1730913590703,3.55,2652.6,2651.7,0.77750816]
[1730913591003,3.55,2652.6,2651.5,0.77750816]
[1730913591004,0.7988,2652.5,2651.5,0.77750816]
[1730913591189,0.7988,2652.3,2651.5,0.77750816]
[1730913591392,0.7988,2652.3,2651.4,0.77750816]
[1730913591976,0.7988,2652.3,2651.4,0.85293201]
[1730913592778,0.7988,2652.3,2651.4,0.07542385]
[1730913593115,0.7988,2652.3,2651.5,0.77750816]
[1730913593523,0.7988,2652.3,2651.6,0.77750816]
[1730913593811,0.7988,2652.3,2651.5,0.77750816]
[1730913594122,0.7988,2652.3,2651.6,1.0522252]
[1730913594491,0.7988,2652.3,2651.6,0.27471704]
[1730913594815,0.7988,2652.3,2651.5,0.77750816]
[1730913595390,0.7988,2652.3,2651.6,0.07542203]
[1730913596618,0.7988,2652.3,2651.8,3.65698611]
[1730913596921,0.8004,2652.6,2651.9,0.85291333]
[1730913597104,0.8004,2652.6,2652.0,0.45098994]
[1730913597284,0.8004,2652.6,2652.1,0.07540105]
[1730913597991,0.8209,2653.2,2652.1,5.25569427]
[1730913598204,0.8209,2653.2,2652.2,0.77750816]
[1730913598622,3.8209,2653.2,2652.2,0.77750816]
[1730913598780,4.52999,2653.2,2652.3,1.05521565]
[1730913599700,0.8209,2653.2,2652.4,0.07539135]
[1730913599881,0.8209,2653.2,2652.4,0.77750816]
[1730913600512,0.8209,2653.2,2652.4,4.43449427]
[1730913601085,0.8209,2653.2,2652.5,4.1302]
[1730913601304,0.8209,2653.2,2652.6,0.85646943]
[1730913601543,0.8209,2653.2,2652.7,0.07538435]
[1730913602031,0.8209,2653.2,2652.6,4.98666943]
[1730913603330,0.7772,2653.4,2652.7,3.65698611]
[1730913603484,0.7772,2653.4,2652.7,4.68080248]
[1730913603685,0.7772,2653.4,2652.7,5.45831064]
[1730913604498,0.7772,2653.4,2652.7,4.68080248]
[1730913605083,0.7772,2653.4,2652.7,1.02381637]
[1730913605297,0.7772,2653.4,2652.6,5.76417759]
[1730913605485,0.7772,2653.4,2652.7,0.8174]
[1730913606186,0.7772,2653.4,2652.8,4.1302]
[1730913610629,0.7772,2653.4,2652.9,4.1302]
[1730913611619,0.7772,2653.4,2653.0,0.07537325]
[1730913611855,0.7772,2653.4,2653.0,0.49593058]
[1730913614246,0.7772,2653.4,2653.0,0.42055733]
[1730913616580,0.7772,2653.4,2653.0,4.55075733]
[1730913618253,0.7772,2653.4,2653.1,0.07537351]
[1730913618748,0.7772,2653.4,2653.0,4.55075733]
[1730913619454,0.7772,2653.4,2653.1,0.45507573]
[1730913619659,0.7772,2653.4,2653.1,0.53044914]
[1730913621867,0.7772,2653.4,2653.1,0.45507573]
[1730913622073,0.8107,2653.9,2653.3,3.65698611]
[1730913622233,0.8107,2653.9,2653.4,0.07536136]
[1730913622432,0.8107,2653.9,2653.4,0.86161611]
[1730913622767,0.8107,2653.9,2653.4,0.78625475]
[1730913623763,0.8107,2653.9,2653.4,0.86161611]
[1730913625455,0.8107,2653.9,2653.4,4.99181611]
[1730913628054,0.7611,2654.9,2653.6,3.65698611]
[1730913628258,0.39101262,2655.0,2653.7,0.36569861]
[1730913628259,0.05509674,2654.8,2653.7,0.36569861]
[1730913628566,0.81619674,2654.8,2653.7,0.36569861]
[1730913628756,0.80242083,2654.8,2653.7,0.36569861]
[1730913629863,0.80242083,2654.8,2653.9,3.65698611]
[1730913630065,0.80242083,2654.8,2654.0,0.4485778]
[1730913630558,0.7611,2654.8,2654.0,0.4485778]
[1730913630874,0.7611,2654.8,2654.0,0.07534434]
[1730913631074,0.7611,2654.8,2653.9,0.07534434]
[1730913631381,0.7611,2654.8,2653.9,4.20554434]
[1730913632293,0.7611,2654.8,2653.9,4.1302]
[1730913632862,0.04963868,2654.7,2653.9,4.1302]
[1730913633060,0.04963868,2654.7,2654.0,0.07535202]
[1730913633061,0.7559,2654.6,2654.0,0.07535202]
[1730913633285,0.7559,2654.6,2653.9,4.57978986]
[1730913633490,0.7559,2654.6,2653.9,5.36258986]
[1730913634401,0.7559,2654.6,2654.0,0.07534434]
[1730913634959,0.7559,2654.6,2654.0,3.73233045]
[1730913635157,0.7559,2654.6,2654.1,0.90949203]
[1730913635411,0.7559,2654.6,2654.2,0.07534434]
[1730913635564,0.7559,2654.6,2654.3,3.65698611]
[1730913635764,0.7559,2655.3,2654.4,0.07533655]
[1730913635982,0.7559,2655.3,2654.4,4.99178882]
[1730913636180,0.7876,2655.1,2654.4,4.99178882]
[1730913636602,0.7876,2655.1,2654.4,4.1302]
[1730913636963,0.7638,2654.9,2654.4,4.1302]
[1730913637362,0.7638,2654.7,2654.4,4.1302]
[1730913637677,0.7638,2654.7,2653.7,4.43449427]
[1730913637678,0.04981184,2654.6,2653.8,4.1302]
[1730913637893,0.7763,2654.5,2653.9,4.1302]
[1730913638059,0.7763,2654.5,2653.9,4.90891861]
[1730913639340,0.7763,2654.5,2653.9,4.1302]
[1730913639641,0.04952192,2654.4,2653.9,4.1302]
[1730913639839,0.01,2655.1,2653.9,4.1302]
[1730913639840,0.8202,2654.3,2653.9,4.1302]
[1730913642717,0.8202,2654.3,2653.8,0.77750816]
[1730913643976,0.86957695,2654.3,2653.8,0.77750816]
[1730913644531,0.7571,2654.0,2653.6,0.77750816]
[1730913644863,0.7571,2654.0,2653.4,1.16626224]
[1730913644864,0.7571,2653.8,2653.4,0.77750816]
[1730913645274,0.7571,2653.8,2653.1,0.77750816]
[1730913646148,0.7571,2653.6,2653.0,0.77750816]
[1730913646463,0.7571,2653.6,2652.9,0.77750816]
[1730913646665,0.7571,2653.6,2652.8,0.77750816]
[1730913646872,0.8128,2653.4,2652.7,0.77750816]
[1730913647073,0.8128,2653.1,2652.6,0.77750816]
[1730913647369,0.8128,2653.1,2652.4,1.16626224]
[1730913647370,0.8128,2653.1,2652.5,0.77750816]
[1730913647669,0.8128,2653.1,2652.4,0.77750816]
[1730913647872,0.8128,2653.1,2652.3,0.77750816]
[1730913650495,0.8128,2653.1,2652.2,0.77750816]
[1730913651563,0.8128,2653.1,2652.1,0.77750816]
[1730913653692,0.8128,2653.1,2652.2,0.07540154]
[1730913653861,0.8128,2653.1,2652.1,0.77750816]
[1730913654476,0.8128,2653.1,2652.0,0.77750816]
[1730913654804,0.8128,2653.1,2652.0,1.90610544]
[1730913655451,0.8318,2652.9,2652.0,1.90610544]
[1730913655853,0.8318,2652.9,2652.0,1.98151169]
[1730913656265,0.8318,2652.9,2652.0,0.85291439]
[1730913656468,0.8318,2652.9,2652.0,0.07540623]
[1730913657292,0.8318,2652.9,2651.9,4.90770816]
[1730913657668,0.8318,2652.9,2651.9,4.1302]
[1730913657996,0.8318,2652.9,2651.9,0.77750816]
[1730913658223,0.8318,2652.9,2651.8,4.43449427]
[1730913658362,0.8318,2652.9,2651.9,0.97309565]
[1730913659003,0.8318,2652.9,2651.8,4.43449427]
[1730913659172,0.8318,2652.9,2652.7,3.76961]
[1730913659516,1.3372,2652.8,2652.7,3.08522272]
[1730913659801,0.7872,2652.8,2652.7,3.08522272]
[1730913661065,3.28,2653.9,2653.7,3.76832]
[1730913661266,3.28,2653.9,2652.6,3.76987]
[1730913661267,3.28,2653.9,2652.7,0.376987]
[1730913661491,3.28,2653.9,2653.4,3.76862]
[1730913661804,3.28,2653.9,2652.6,4.1302]
[1730913662107,3.28,2653.9,2652.7,4.1302]
[1730913662470,0.55,2653.8,2652.7,4.1302]
[1730913662660,0.55,2653.8,2652.5,4.1302]
[1730913662866,0.55,2653.6,2652.5,5.10329565]
[1730913663204,0.55,2653.6,2652.5,5.1786867]
[1730913663409,0.55,2653.6,2652.7,3.65698611]
[1730913664313,0.7448,2653.5,2652.5,5.10329565]
[1730913664463,0.7448,2653.3,2652.5,4.1302]
[1730913664660,0.7448,2653.3,2652.4,4.1302]
[1730913665292,0.55,2653.1,2652.3,4.1302]
[1730913665495,0.7448,2653.0,2652.3,4.1302]
[1730913666923,0.7448,2653.0,2652.4,3.65698611]
[1730913667090,0.7448,2653.0,2652.4,4.44324508]
[1730913667293,0.7448,2653.0,2652.4,0.78625897]
[1730913667587,0.7448,2653.0,2652.3,4.1302]
[1730913667789,0.7448,2653.0,2652.5,3.65698611]
[1730913668734,0.7448,2653.0,2652.3,4.1302]
[1730913669513,0.7448,2653.0,2652.8,3.65698611]
[1730913671323,0.7448,2653.0,2652.8,4.02268472]
[1730913671627,0.7448,2653.0,2652.8,8.15288472]
[1730913672585,0.7448,2653.0,2652.8,7.78718611]
[1730913673478,0.7448,2653.2,2652.8,7.78718611]
[1730913673890,0.7448,2653.2,2653.1,3.65698611]
[1730913674109,0.7448,2653.6,2653.1,3.65698611]
[1730913674787,0.7448,2653.6,2652.8,3.65698611]
[1730913675816,0.55,2653.5,2652.7,4.1302]
[1730913676015,0.7448,2653.4,2652.7,4.1302]
[1730913676846,0.7448,2653.4,2652.8,3.65698611]
[1730913684151,0.7448,2653.4,2653.1,3.65698611]
[1730913684659,0.7448,2653.8,2653.2,4.1302]
[1730913684954,0.7448,2653.8,2653.3,4.1302]
[1730913685355,0.7448,2653.8,2653.4,3.65698611]
[1730913690666,0.7448,2653.8,2653.4,7.78718611]
[1730913690828,1.14628,2653.8,2653.4,7.78718611]
[1730913692232,0.7448,2653.8,2653.7,3.65698611]
[1730913692627,0.7448,2653.8,2653.4,4.1302]
[1730913696452,0.7448,2653.8,2653.3,4.43449427]
[1730913696646,0.7448,2653.8,2653.3,3.65698611]
[1730913697798,0.7448,2653.8,2653.2,0.77750816]
[1730913699684,0.7448,2653.8,2653.3,0.77750816]
[1730913700335,0.7448,2653.8,2653.2,0.77750816]
[1730913701163,0.7448,2653.8,2653.3,3.65698611]
[1730913701366,0.7448,2653.8,2653.3,4.43449427]
[1730913702548,0.7448,2653.8,2653.3,0.77750816]
[1730913706799,0.7448,2653.8,2653.2,5.29646224]
[1730913706800,0.7448,2653.8,2653.2,4.90770816]
[1730913707025,0.7548,2653.8,2653.2,4.1302]
[1730913707804,0.7448,2653.6,2653.2,4.1302]
[1730913708420,0.7448,2653.6,2652.9,0.77750816]
[1730913709826,0.7448,2653.6,2652.8,4.90770816]
[1730913710023,0.7448,2653.6,2652.9,0.77750816]
[1730913713292,0.7448,2653.6,2653.0,0.77750816]
[1730913714131,0.7448,2653.6,2652.9,0.77750816]
[1730913714431,0.7448,2653.6,2653.0,0.77750816]
[1730913715005,0.7448,2653.6,2652.9,0.77750816]
[1730913715830,0.7448,2653.5,2652.9,0.77750816]
[1730913716132,1.508557,2653.6,2652.9,0.77750816]
[1730913716133,0.7448,2653.3,2652.9,0.77750816]
[1730913716305,0.7448,2653.3,2653.0,0.77750816]
[1730913717633,0.7448,2653.3,2652.9,0.77750816]
[1730913719431,0.7448,2653.3,2652.9,3.76939]
[1730913720232,0.7448,2653.3,2653.0,3.76923]
[1730913720641,0.7448,2653.3,2652.7,4.54713816]
[1730913720935,0.7448,2653.3,2652.8,3.76947]
[1730913721118,0.7448,2653.3,2653.0,3.76924]
[1730913722043,0.7448,2653.3,2653.0,3.76923]
[1730913722225,0.7448,2653.3,2653.1,3.76917]
[1730913722540,0.7448,2653.3,2653.2,3.76903]
[1730913722937,0.7448,2653.6,2653.5,3.7686]
[1730913723640,0.7448,2653.6,2653.4,5.40488355]
[1730913723842,0.7448,2653.6,2653.2,3.76894]
[1730913724008,3.76854,2653.6,2653.1,3.76917]
[1730913724202,0.7448,2653.3,2652.8,3.76952]
[1730913724402,0.7448,2653.2,2652.8,3.76952]
[1730913724605,0.7448,2653.2,2652.8,3.76958]
[1730913725214,0.7448,2653.2,2652.9,5.40561355]
[1730913725411,0.7448,2653.2,2652.9,3.76945]
[1730913726062,0.7448,2653.2,2652.6,7.78581308]
[1730913726265,0.7448,2653.1,2652.6,4.1302]
[1730913729162,3.27,2653.4,2653.3,3.76889]
[1730913729506,0.7448,2653.3,2653.2,3.76903]
[1730913731563,0.7448,2653.3,2653.0,3.7693]
[1730913731767,0.40148,2653.2,2653.0,3.7693]
[1730913732659,0.40148,2653.2,2652.8,3.76949]
[1730913732660,0.7448,2653.1,2652.8,3.76949]
[1730913733474,0.7448,2653.1,2652.7,3.76972]
[1730913734052,0.7448,2653.1,2652.8,3.7696]
[1730913734285,1.236318,2653.1,2652.8,3.7696]
[1730913735968,1.236318,2653.1,2652.9,3.76939]
[1730913736266,0.7448,2653.1,2652.9,3.76939]
[1730913736474,0.7448,2653.1,2652.8,3.7696]
[1730913736475,0.7448,2653.1,2653.0,3.76931]
[1730913737009,0.7448,2653.1,2652.9,3.76945]
[1730913737669,0.7448,2653.1,2652.9,3.76938]
[1730913737857,0.7448,2653.1,2653.0,3.76931]
[1730913738248,0.7448,2653.1,2652.9,3.76938]
[1730913738448,0.7448,2653.1,2652.9,7.53877]
[1730913738648,0.7448,2653.1,2653.0,3.76931]
[1730913738869,0.7448,2653.3,2652.9,3.65561308]
[1730913739170,1.14628,2653.3,2652.9,3.65561308]
[1730913739740,1.14628,2653.3,2653.1,3.76906]
[1730913740173,1.14628,2653.3,2653.2,3.76903]
[1730913740375,1.14628,2653.3,2653.0,3.76931]
[1730913740583,1.14628,2653.3,2652.9,3.76943]
[1730913740799,0.441628,2653.2,2653.0,3.7692]
[1730913741004,0.441628,2653.2,2653.1,3.76917]
[1730913741164,3.27,2653.4,2653.3,3.76889]
[1730913741559,3.27,2653.4,2653.2,3.76902]
[1730913741764,3.27,2653.4,2653.3,3.76889]
[1730913741964,3.27,2653.4,2653.2,3.76901]
[1730913742303,0.7448,2653.2,2652.9,3.76942]
[1730913742609,0.7448,2653.2,2653.0,3.76918]
[1730913743200,0.7448,2653.2,2653.1,3.76917]
[1730913743409,0.7448,2653.2,2653.0,3.76918]
[1730913743568,0.7448,2653.2,2653.1,3.76917]
[1730913743908,1.186428,2653.2,2653.1,3.76917]
[1730913744410,1.186428,2653.2,2653.0,3.76929]
[1730913745200,1.186428,2653.2,2652.9,3.65561308]
[1730913745201,0.441628,2653.2,2653.1,3.76917]
[1730913745363,0.441628,2653.2,2653.0,3.76929]